Cogmind - Beta 16 *** ADVENTURER MODE // 2026.01.29 @ 17:56:30 Player: void Result: Destroyed by 0Q-S6J(R) with Subdweller Machine Gun Performance ------------- Evolutions (0) 0 Regions Visited (2) 400 Robots Destroyed (19) 95 Value Destroyed (633) 633 Prototype IDs (12) 240 Alien Tech Used (0) 0 Bonus (0) 0 TOTAL SCORE: 1368 Bonus ------- None Cogmind --------- Core Integrity 0/250 Matter 164/300 Energy 100/100 System Corruption 0% Temperature Cool (0) Movement Walking (130) Location -10/Subcaves Parts ------- > --- POWER (1) -------- Subdweller Power Source > --- PROPULSION (2) --- Cargo Legs > --- UTILITY (2+2) ---- Small Storage Unit Subdweller Optics (+) Makeshift Light Armor Plating > --- WEAPON (2) ------- Battle Cannon Slug Cannon > --- INVENTORY (8) ---- Improved Terrain Scanner Subdweller Laser Subdweller Laser Barrage Gun Mining Laser Peak State ------------ > --- POWER ------------ Subdweller Power Source > --- PROPULSION ------- Cargo Legs > --- UTILITY ---------- Small Storage Unit Subdweller Optics Makeshift Light Armor Plating > --- WEAPON ----------- Barrage Gun Slug Cannon > --- INVENTORY -------- Improved Terrain Scanner Subdweller Laser Subdweller Laser Battle Cannon Mining Laser [Rating: 33] Favorites ----------- Power Subdweller Power Source Engine Subdweller Power Source Propulsion Aluminum Leg Treads Spiked Treads Leg Aluminum Leg Wheel Wheel Utility Small Storage Unit Device Subdweller Optics Storage Small Storage Unit Protection Makeshift Light Armor Plating Weapon Battle Rifle Ballistic Gun Battle Rifle Ballistic Cannon Battle Cannon Special Weapon Mining Laser Build | -11 -10 -10 ------- Run | Yrd Mat Sub Slots Evolved . | . . . Power . | . . . Propulsion . | . . . Utility . | . . . Weapon . | . . . Parts Attached 23 | 7 1 15 Power 3 | 1 . 2 Engine 3 | 1 . 2 Core . | . . . Reactor . | . . . Propulsion 6 | 2 . 4 Treads 1 | . . 1 Leg 3 | . . 3 Wheel 2 | 2 . . Hover . | . . . Flight . | . . . Utility 5 | 2 . 3 Device 3 | 1 . 2 Storage 1 | 1 . . Processor . | . . . Hackware . | . . . Protection 1 | . . 1 Artifact . | . . . Weapon 9 | 2 1 6 Energy Gun . | . . . Energy Cannon . | . . . Ballistic Gun 5 | 2 . 3 Ballistic Cannon 3 | . . 3 Launcher . | . . . Special Weapon 1 | . 1 . Impact Weapon . | . . . Slashing Weapon . | . . . Piercing Weapon . | . . . Special Melee Weapon . | . . . Unidentified Prototypes 1 | . . 1 Parts Lost 9 | . . 9 Power 1 | . . 1 Propulsion 3 | . . 3 Utility 2 | . . 2 Weapon 3 | . . 3 Highest Loss Streak 3 | . . 3 To Critical Strikes . | . . . Average Backups 6 | 1 2 6 Power . | . . . Propulsion . | . . . Utility 1 | . 1 1 Weapon 5 | . 1 5 Tool/Special . | . . . Unused Backups 5 | 1 . 4 Power . | . . . Propulsion . | . . . Utility 2 | 1 . 1 Weapon 3 | . . 3 Tool/Special . | . . . Average Slot Usage (%) 89 | . 100 89 Engine 11 | . 14 11 Treads 8 | . . 8 Leg 11 | . . 11 Wheel 4 | . 28 3 Device 5 | . 14 5 Storage 13 | . 14 13 Protection 6 | . . 6 Ballistic Gun 16 | . 26 16 Ballistic Cannon 10 | . . 10 Peak Build Rating 33 | 7 7 33 Average Rating 15 | 5 7 15 On Entrance 4 | . 7 7 Avg Prop Armor Cover (%) 11 | . . 11 Naked Turns . | . . . Heaviest Build 26 | 14 14 26 Greatest Support 55 | 20 20 55 Greatest Overweight (x) 2 | . . 2 Average Overweight (x) . | . . . Largest Inventory Capacity 8 | 8 8 8 Average Capacity 7 | 7 8 8 Most Carried 8 | 3 2 8 Average Carried 6 | 1 2 6 Final Capacity 8 | 8 8 8 Final Carried 5 | 2 2 5 Class Distribution -------------------- 63% | Mutant 32% | Derelict-Mutant 3% | Scavenger-Mutant Dominant Class ---------------- Mutant | -10/Materials Mutant | -10/Subcaves Resources | -11 -10 -10 ----------- Run | Yrd Mat Sub Matter Collected 957 | 302 . 655 Remotely . | . . . Salvage Created 701 | 124 . 577 Parts 43 | 15 . 28 Haulers Intercepted . | . . . Recyclers Shooed 1 | 1 . . Parts Field Recycled . | . . . Retrieved Matter . | . . . Parts Self-Destructed 5 | . . 5 Prevented . | . . . Parts Restored . | . . . Kills | -11 -10 -10 ------- Run | Yrd Mat Sub Combat Hostiles Destroyed 15 | . . 15 Guns 7 | . . 7 Cannons 8 | . . 8 Classes Destroyed 5 | 2 . 3 Tunneler 3 | 3 . . Recycler 1 | 1 . . Grunt 2 | . . 2 Sentry 1 | . . 1 Subdweller 12 | . . 12 Best Kill Streak 3 | 2 . 3 Combat Bots Only 3 | . . 3 Max Kills in Single Turn 1 | 1 . 1 Gunslinging . | . . . Exploded . | . . . Melee . | . . . Uniques/NPCs Destroyed . | . . . Combat | -11 -10 -10 -------- Run | Yrd Mat Sub Hostile Shots Fired 106 | . . 106 Missed 30 | . . 30 Hits 76 | . . 76 Projectile 76 | . . 76 AOE 2 | . . 2 Critical Strikes 4 | . . 4 Damage Taken 1333 | . . 1333 Core 258 | . . 258 Absorbed by Shields . | . . . Ignored by Resistances 375 | . . 375 Core Remaining (%) 100 | 100 . . Volleys Fired 113 | 9 1 103 Largest 2 | 2 1 2 Hottest 100 | 40 100 100 Shots Fired 185 | 18 1 166 Gun 106 | 18 . 88 Cannon 74 | . . 74 Launcher . | . . . Special 5 | . 1 4 Kinetic 180 | 18 . 162 Thermal 5 | . 1 4 Explosive . | . . . Electromagnetic . | . . . Robot Hit Streak 25 | 7 . 25 Robot Miss Streak 2 | 1 . 2 Penetration Max . | . . . Secondary Targets 1 | . . 1 Max Gunslinging Chain 1 | . . 1 Shots Hit Robots 122 | 14 . 108 Core Hits 37 | 5 . 32 Critical Kills 2 | . . 2 Critical Parts Destroyed 1 | . . 1 Critical Strikes 5 | . . 5 Destroy 5 | . . 5 Melee Attacks . | . . . Impact . | . . . Slashing . | . . . Piercing . | . . . Sneak Attacks . | . . . Combat Hostiles . | . . . Follow-up Attacks . | . . . Damage Inflicted 1863 | 148 . 1715 Guns 1060 | 148 . 912 Cannons 803 | . . 803 Explosions . | . . . Melee . | . . . Ramming . | . . . Kinetic 1863 | 148 . 1715 Thermal . | . . . Explosive . | . . . Electromagnetic . | . . . Impact . | . . . Slashing . | . . . Piercing . | . . . Highest Corruption . | . . . Average Corruption . | . . . Corruption Purged . | . . . Corruption Blocked . | . . . Overload Shots . | . . . Overflow Damage . | . . . Projectiles . | . . . Explosions . | . . . Melee . | . . . Knockbacks 3 | . . 3 Impact . | . . . Kinetic 3 | . . 3 Secondary . | . . . Self-Inflicted Damage . | . . . Shots . | . . . Rammed . | . . . Targets Rammed . | . . . Kicked . | . . . Crushed . | . . . Highest Temperature 20 | . 20 4 Average Temperature 8 | . 12 4 Received Heat Transfer 327 | . . 327 Siege Activations . | . . . Martial Activations . | . . . Shielding Activations . | . . . Robots Disrupted . | . . . Combat Hostiles . | . . . Robots Corrupted . | . . . Combat Hostiles . | . . . Parts Fried . | . . . Impact Corruptions . | . . . Robots Melted . | . . . Combat Hostiles . | . . . Parts Melted 1 | . . 1 Heat Transferred . | . . . Parts Sabotaged . | . . . Parts Stolen . | . . . Parts Stripped . | . . . Power Chain Reactions . | . . . Alert | -11 -10 -10 ------- Run | Yrd Mat Sub Maximum Alert Level . | . . . Low Security (%) 100 | 100 100 . Level 1 . | . . . Level 2 . | . . . Level 3 . | . . . Level 4 . | . . . Level 5 . | . . . High Security . | . . . Max Security . | . . . Peak Influence 10 | 10 8 . Initial 5 | . 5 . Average 2 | 3 2 . Influence Increases 94 | 20 4 70 Destroy 0b10 Robot/C 60 | . . 60 Destroy 0b10 Robot/NC 20 | 20 . . Destroy Leader 10 | . . 10 Successful Hack 3 | . 3 . Destroy Structure 1 | . 1 . Influence Decreases 94 | 10 14 70 Entered New Map 5 | . 5 . Time Decay 89 | 10 9 70 Squads Dispatched 1 | . 1 . Investigation 1 | . 1 . Extermination . | . . . Reinforcement . | . . . Assault . | . . . Garrison . | . . . Intercept . | . . . Searches Triggered . | . . . Construction Impeded . | . . . Haulers Reinforced . | . . . Active Scanning Responses . | . . . Cargo Convoy Interrupts . | . . . Stealth | -11 -10 -10 --------- Run | Yrd Mat Sub Distress Signals . | . . . Communications Jammed . | . . . Distress Signals . | . . . Times Spotted 17 | . . 17 Peak Tracking Total 3 | . . 3 Tactical Retreats . | . . . Traps | -11 -10 -10 ------- Run | Yrd Mat Sub Traps Triggered 2 | . 1 1 Indirectly . | . . . Trap Hack Attempts . | . . . Triggered . | . . . Disarmed . | . . . Reprogrammed . | . . . Reused . | . . . Traps Extracted . | . . . Installed . | . . . Triggered . | . . . Machines | -11 -10 -10 ---------- Run | Yrd Mat Sub Machines Disabled . | . . . Max in Single Turn . | . . . Machines Repaired . | . . . Machines Dismantled . | . . . Machines Sabotaged . | . . . Overloaded Fab Kills . | . . . Hacking | -11 -10 -10 --------- Run | Yrd Mat Sub Machines Accessed 3 | . 1 2 Terminals 1 | . 1 . Fabricators . | . . . Repair Stations . | . . . Recycling Units . | . . . Scanalyzers . | . . . Garrison Access . | . . . Total Hacks 7 | . 3 4 Successful 5 | . 1 4 Failed 2 | . 2 . Catastrophic 1 | . 1 . Database Lockouts . | . . . Manual 3 | . 2 1 Terminals 3 | . 3 . Fabricators . | . . . Repair Stations . | . . . Recycling Units . | . . . Scanalyzers . | . . . Garrison Access . | . . . Terminal Hacks 5 | . 1 4 Record 3 | . . 3 Locate Traps 1 | . 1 . Proto ID Catalog 1 | . . 1 Fabricator Hacks . | . . . Repair Station Hacks . | . . . Recycling Unit Hacks . | . . . Scanalyzer . | . . . Garrison Access Hacks . | . . . Unauthorized Hacks . | . . . Terminals . | . . . Fabricators . | . . . Repair Stations . | . . . Recycling Units . | . . . Scanalyzers . | . . . Garrison Access . | . . . Data Cores Recovered . | . . . Used . | . . . Hacking Detections 1 | . 1 . Full Trace Events . | . . . Feedback Events . | . . . Feedback Blocked . | . . . Robot Schematics Acquired . | . . . Robots Built . | . . . Authchips . | . . . Time . | . . . Total Robot Build Rating . | . . . Part Schematics Acquired . | . . . Parts Built . | . . . Authchips . | . . . Time . | . . . Total Part Build Rating . | . . . Part Studies Acquired . | . . . Parts Repaired . | . . . Time . | . . . Parts Recycled . | . . . Recycled Matter . | . . . Retrieved Matter . | . . . Retrieved Components . | . . . Parts Scanalyzed . | . . . Part Schematics Acquired . | . . . Parts Damaged . | . . . Bothacking | -11 -10 -10 ------------ Run | Yrd Mat Sub Used RIF Installer . | . . . Robots Hacked . | . . . Non-combat . | . . . Combat . | . . . Robot Hacks Applied . | . . . Relay Couplers Released . | . . . Fabnet Peak Effective % . | . . . Robots Rewired . | . . . Allies Hacked . | . . . Hacks Repelled . | . . . Allies | -11 -10 -10 -------- Run | Yrd Mat Sub Total Allies . | . . . Largest Group . | . . . Highest-Rated Group . | . . . Highest-Rated Ally . | . . . Total Orders . | . . . Ally Attacks . | . . . Total Damage . | . . . Kills . | . . . Allies Corrupted . | . . . Allies Melted . | . . . Intel | -11 -10 -10 ------- Run | Yrd Mat Sub Active Infowar (turns) 601 | 35 70 496 Optics 302 | . . 302 Seismic 299 | 35 70 194 Robot Analysis Total . | . . . Derelict Logs Recovered 1 | . . 1 Drone Launches . | . . . Drone Recoveries . | . . . Exploration | -11 -10 -10 ------------- Run | Yrd Mat Sub Turns Passed 2608 | 79 70 2459 Spaces Moved 1558 | 50 79 1429 Core 1 | 1 . . Treads 2 | . . 2 Legs 1072 | . . 1072 Wheels 483 | 49 79 355 Hover . | . . . Flight . | . . . Fastest Speed 50 | 50 80 80 Average Speed 139 | 79 80 145 Slowest Speed 260 | 80 80 260 Overloaded Moves . | . . . Propulsion Burnouts . | . . . Robots Hopped . | . . . Potential Cave-ins . | . . . Cave-ins Triggered . | . . . Exploration Rate (%) 30 | 5 17 69 Regions Visited 2 Branch Regions 1 Pre-discovered Areas 1 | . . 1 Known Exits Taken . | . . . Unknown Exits Taken 2 | 1 1 . Scrap Searched 10 | . . 10 Spaces Dug 1 | . 1 . Terrain Destroyed 2 | . 1 1 Melee . | . . . Projectile 2 | . 1 1 AOE . | . . . Terrain Rammed . | . . . Walls Destroyed . | . . . Machines Disabled . | . . . Actions | -11 -10 -10 --------- Run | Yrd Mat Sub Total 1795 | 69 81 1645 Wait 74 | . . 74 Move 1556 | 49 78 1429 Hop . | . . . Pick Up 17 | 3 . 14 Fast Attach 13 | 7 . 6 Attach 6 | . . 6 Detach . | . . . Swap 7 | . 2 5 Drop 9 | 1 . 8 Fire 113 | 9 1 103 Melee . | . . . Ram . | . . . Kick . | . . . Crush . | . . . Escape Stasis . | . . . Rewire . | . . . Trap . | . . . Miscellaneous . | . . . Route ------- -11/Scrapyard -10/Materials -10/Subcaves History --------- Turn | Location | Event 20 | -11/Scrapyard | Discovered new exit (range 16) 80 | -11/Scrapyard | Entered Materials 148 | -10/Materials | Discovered new exit (range 3) 150 | -10/Materials | Entered Subcaves 151 | -10/Subcaves | Approached by a straggling Scientist 303 | -10/Subcaves | Build established: Mutant 395 | -10/Subcaves | Disturbed a concealed Subdweller 441 | -10/Subcaves | Lost 3 parts (1p1n1w) 528 | -10/Subcaves | Shifting Twisted Machinery released Battle Cannon 788 | -10/Subcaves | Core integrity fell below 50% 937 | -10/Subcaves | Shifting Twisted Machinery released Battle Cannon 960 | -10/Subcaves | Shifting Twisted Machinery released Sub. Power Source 1517 | -10/Subcaves | A swath of the cavern ceiling suddenly collapsed 1656 | -10/Subcaves | Build established: Derelict-Mutant 1693 | -10/Subcaves | Visited Clippyterm 1698 | -10/Subcaves | Learned location of Deep Caves (-6) 2170 | -10/Subcaves | A Subdweller sparked back to life 2170 | -10/Subcaves | A Subdweller sparked back to life 2170 | -10/Subcaves | A Subdweller sparked back to life 2183 | -10/Subcaves | Core integrity fell below 20% 2212 | -10/Subcaves | Found Prototype Leg 2212 | -10/Subcaves | Identified Cargo Legs 2213 | -10/Subcaves | Attached Cargo Legs, gained temporary slots: Utility x2 2227 | -10/Subcaves | Lost 3 parts (1n2w) 2332 | -10/Subcaves | Visited 4L-MR0's lab 2503 | -10/Subcaves | Build established: Mutant 2609 | -10/Subcaves | Destroyed by 0Q-S6J(R) with Subdweller Machine Gun Last Messages --------------- Cargo Legs Tripod Weapons Platform Hoverbase Flightbrick Gun Armor Tower Shield Power Bank Rainbow Chip VL-GR5's Exoskeleton "Deathgrip" Powered Cannon 02340_ 4L-MR0 mumbles to no one in particular: "Damn Subs sneaking around stealing my stuff." 02344_ 4L-MR0 mumbles: "I'm surprised some of them are even willing to come in here given their fear of my usual visitors." 02347_ 4L-MR0 mumbles: "Who knows where that last prototype ended up, probably tossed aside somewhere as if it were useless junk..." 02458_ Acquired 3 matter. 02595_ YW-LSG(R) suffers critical hit (Destroy). 02601_ Slug penetrates YW-LSG(R). 02607_ Destroyed Scrap Shield. Map ----- +----------------------------------------------------+ | #### ##?# ## ### #### ## | | ### ##??#####?# #####?# #? | | # # ##?????????##### #?????### % # # % #? | | #??????????????# #???????### ####### #? | | #??????????????####?????????###?????####? | | # ## #??????????????????????????????????????? | | ###### #??????????????????????????????????????? | | ?????### #??????????????????????????????????????? | | ???????####??????????????????????????????????????? | | ?????????????????????????????????????????????????? | | ?????????????????????????????????????????????????? | | ?????????????????????????????????????????????????? | | ?????????????????????????????????????????????????? | | ?????????????????????????????????????????????????? | | ?????????????????????????????????????????????????? | | ?????????????????????????????????????????????????? | | ?????????????????????????????????????????????????? | | ?????????????????????????????????????????????????? | | ?????????????????????????????????##########??????? | | ????????????????????????????###### ## # ###????? | | ????????????????????????????# ##???? | | ?????????????????????????????# ##??? | | ?????????????????????????##### ## # #??? | | ?????????????????## ###### ######## ##### | | ?????????????????#""" %RR | ###??????# # # | | ????????????? |""" #;@ ##????????# & | | ??????????????"#"##""??## ##?????????# = | | ??????????????????#?????#"" #??????????### ### | | ????????????????????????#######????????????#####?# | | ?????????????????????????????????????????????????? | | ?????????????????????????????????????????????????? | | ?????????????????????????????????????????????????? | | ?????????????????????????????????????????????????? | | ?????????????????????????????????????????????????? | | ?????????????????????????????????????????????????? | | ?????????????????????????????????????????????????? | | ?????????????????????????????????????????????????? | | ?????????????????????????????????????????????????? | | ?????????????????????????????????????????????????? | | ?????????????????????????????????????????????????? | | ?????????????????????????????????????????????????? | | ?????????????????????????????????????????????????? | | ?????????????????????????????????????????????????? | | ?????????????????????????????????????#???????###?? | | ?????????????????????????????????????# ##???## ### | | ?????????????????????????????????# # ### | | ?????????????????????????????????# | | ????????????????????????????????# ### ## | | ?????????????????????????????????? ## ## | | ???????????????????????????? ??## ### | +----------------------------------------------------+ Best States ------------- Heat Dissipation 25 Energy Generation 15 Energy Capacity 250 Matter Stores 300 Matter Capacity 300 Sight Range 21 Terrain Scan Density 10 Armor Coverage 100 Resistance: KI 20 Resistance: TH 20 Resistance: EX 20 Resistance: EM 20 Resistance: I 20 Resistance: S 20 Resistance: P 20 Evasion (%) 55 Recoil Reduction 1 Offensive Hacking 10 Item Schematics ----------------- None Robot Schematics ------------------ None Fabricated ------------ Nothing Repaired ---------- Nothing Studied --------- None Alien Tech Used ----------------- None Achievements -------------- Mistaken Identity Challenges ------------ None Game ------ Seed DerelictBottomlessRipteeth Manual? 0 Play Time 00:25:39 Cumulative 72.8 hours Start 2026.01.29 @ 17:32:29 End 2026.01.29 @ 17:56:30 Sessions 1 Manual Loads 0 Difficulty Adventurer Special Mode None Game No. 114 Rogue 87 Adventurer 25 Explorer 2 Win Type - Total 0 Types 0/0/0/0/0/0/0/0/0/0 Lore% 13 Gallery% 35 Achievement% 22 Wizard Run 0 Options --------- Layout 0 ASCII 0 Keyboard 0 Movement Mouse Keybinds 0 Fullscreen 1 Font 18/SmallcapsGlow Map View 38x25 Zoom Use 92% Tactical HUD 1 Map Filters NONE Filters NONE Steam 1 RUN: 7e301f0c-c530-4b90-9df3-62603acca525